fUST/lending_fUST_20250313
["ID","MTS","AMOUNT","RATE_DAILY","PERIOD"]
[356030496,1741807848117,-55052.7,0.00022191,2]
[356030497,1741807848128,-247.74631659,0.00022191,2]
[356030498,1741807848138,-500.0,0.00022191,2]
[356030499,1741807848148,-762.18,0.00022191,2]
[356030500,1741807848159,-795.78,0.00022191,2]
[356030501,1741807848169,-500.0,0.00022191,2]
[356030502,1741807848179,-15325.94,0.00022191,2]
[356030503,1741807848189,-775.49,0.00022191,2]
[356030504,1741807848199,-500.0,0.00022191,2]
[356030505,1741807848208,-856.87,0.00022191,2]
[356030506,1741807848218,-500.0,0.00022191,2]
[356030507,1741807848228,-500.0,0.00022191,2]
[356030508,1741807848238,-2080.55,0.00022191,2]
[356030509,1741807848248,-1260.94,0.00022191,2]
[356030510,1741807848257,-151.0,0.00022191,7]
[356030511,1741807848267,-1967.72,0.00022191,2]
[356030512,1741807848276,-500.0,0.00022191,2]
[356030513,1741807848286,-675.84,0.00022191,2]
[356030514,1741807848296,-151.0,0.00022191,7]
[356030515,1741807848306,-500.0,0.00022191,2]
[356030516,1741807848316,-151.0,0.00022191,7]
[356030517,1741807848326,-500.0,0.00022191,2]
[356030518,1741807848336,-982.81,0.00022191,2]
[356030519,1741807848345,-500.0,0.00022191,2]
[356030520,1741807848356,-154.911454,0.00022191,7]
[356030521,1741807848366,-500.0,0.00022191,2]
[356030522,1741807848376,-500.0,0.00022191,2]
[356030523,1741807848387,-898.47,0.00022191,2]
[356030524,1741807848396,-2400.93,0.00022191,2]
[356030525,1741807848408,-5232.51,0.00022191,2]
[356030526,1741807848419,-500.0,0.00022191,2]
[356030527,1741807848429,-582.30362288,0.00022191,2]
[356030528,1741807848440,-500.0,0.00022191,2]
[356030529,1741807848451,-6967.34,0.00022191,2]
[356030530,1741807848462,-10406.88,0.00022191,2]
[356030531,1741807848472,-500.0,0.00022191,2]
[356030532,1741807848481,-160.0,0.00022191,7]
[356030533,1741807848491,-500.0,0.00022191,2]
[356030534,1741807848501,-1098.79,0.00022191,2]
[356030535,1741807848511,-500.0,0.00022191,2]
[356030536,1741807848521,-1000.0,0.00022191,7]
[356030537,1741807848531,-4196.022214,0.00022191,7]
[356030538,1741807848541,-784.47,0.00022191,2]
[356030539,1741807848551,-500.0,0.00022191,2]
[356030540,1741807848561,-816.64,0.00022191,2]
[356030541,1741807848570,-4196.022214,0.00022191,7]
[356030542,1741807848580,-500.0,0.00022191,2]
[356030543,1741807848589,-938.64,0.00022191,2]
[356030544,1741807848599,-500.0,0.00022191,2]
[356030545,1741807848608,-500.0,0.00022191,2]
[356030546,1741807848618,-3174.62,0.00022191,2]
[356030547,1741807848628,-500.0,0.00022191,2]
[356030548,1741807848638,-500.0,0.00022191,2]
[356030549,1741807848647,-500.0,0.00022191,2]
[356030550,1741807848659,-4178.48,0.00022191,2]
[356030551,1741807848668,-500.0,0.00022191,2]
[356030552,1741807848678,-1945.29,0.00022191,2]
[356030553,1741807848690,-1201.15,0.00022191,2]
[356030554,1741807848703,-6271.53,0.00022191,2]
[356030555,1741807848712,-500.0,0.00022191,2]
[356030556,1741807848722,-166.29440643,0.00022191,2]
[356030557,1741807848733,-1997.39,0.00022191,2]
[356030558,1741807848743,-1453.0,0.00022191,2]
[356030559,1741807848753,-610.44710715,0.00022191,2]
[356030560,1741807848763,-500.0,0.00022191,2]
[356030561,1741807848773,-966.27,0.00022191,2]
[356030562,1741807848784,-500.0,0.00022191,2]
[356030563,1741807848793,-717.15,0.00022191,2]
[356030564,1741807848803,-500.0,0.00022191,2]
[356030565,1741807848812,-1220.27,0.00022191,2]
[356030566,1741807848821,-329.453428,0.00022191,7]
[356030567,1741807848831,-495.89108934,0.00022191,2]
[356030568,1741807848841,-329.453428,0.00022191,7]
[356030569,1741807848851,-500.0,0.00022191,2]
[356030570,1741807848860,-668.51,0.00022191,2]
[356030571,1741807848871,-500.0,0.00022191,2]
[356030572,1741807848881,-500.0,0.00022191,2]
[356030573,1741807848890,-534.31,0.00022191,2]
[356030574,1741807848900,-607.63,0.00022191,2]
[356030575,1741807848912,-151.0,0.00022191,7]
[356030576,1741807848923,-500.0,0.00022191,2]
[356030577,1741807848933,-500.0,0.00022191,2]
[356030578,1741807848944,-500.0,0.00022191,2]
[356030579,1741807848954,-500.0,0.00022191,2]
[356030580,1741807848964,-355.54030018,0.00022191,2]
[356030581,1741807848974,-500.0,0.00022191,2]
[356030582,1741807848985,-500.0,0.00022191,2]
[356030583,1741807848995,-500.0,0.00022191,2]
[356030584,1741807849005,-500.0,0.00022191,2]
[356030585,1741807849014,-500.0,0.00022191,2]
[356030586,1741807849024,-1791.89,0.00022191,2]
[356030587,1741807849034,-2247.476888,0.00022191,7]
[356030588,1741807849044,-12953.95,0.00022191,2]
[356030589,1741807849054,-2247.476888,0.00022191,7]
[356030590,1741807849063,-4564.73,0.00022191,2]
[356030591,1741807849073,-500.0,0.00022191,2]
[356030592,1741807849082,-1130.24,0.00022191,2]
[356030593,1741807849092,-500.0,0.00022191,2]
[356030594,1741807849104,-500.0,0.00022191,2]
[356030595,1741807849113,-500.0,0.00022191,2]
[356030596,1741807849123,-579.5,0.00022191,2]
[356030597,1741807849132,-834.68,0.00022191,2]
[356030598,1741807849142,-4353.51,0.00022191,2]
[356030599,1741807849152,-500.0,0.00022191,2]
[356030600,1741807849162,-697.039081,0.00022191,7]
[356030601,1741807849172,-500.0,0.00022191,2]
[356030602,1741807849182,-500.0,0.00022191,2]
[356030603,1741807849192,-500.0,0.00022191,2]
[356030604,1741807849202,-500.0,0.00022191,2]
[356030605,1741807849212,-393.0,0.00022192,2]
[356030606,1741807849222,-151.0,0.000222,6]
[356030607,1741807849231,-151.0,0.000223,9]
[356030608,1741807849242,-151.0,0.000223,5]
[356030609,1741807849252,-855.77730738,0.000223,2]
[356030610,1741807849262,-151.0,0.00022345,7]
[356030611,1741807849272,-353.751824,0.00022345,7]
[356030612,1741807849282,-353.751824,0.00022345,7]
[356030613,1741807849292,-151.0,0.00022345,7]
[356030614,1741807849302,-220.152077,0.00022345,7]
[356030615,1741807849312,-151.0,0.00022345,7]
[356030616,1741807849322,-220.152077,0.00022345,7]
[356030617,1741807849332,-151.0,0.00022345,7]
[356030618,1741807849341,-15577.25547611,0.00022345,2]
[356030619,1741807849351,-416.66666667,0.00022345,2]
[356030620,1741807849361,-160.0,0.00022345,2]
[356030621,1741807849370,-160.0,0.00022345,2]
[356030622,1741807849380,-729.71021274,0.00022396,2]
[356030623,1741807849389,-151.0,0.000224,7]
[356030624,1741807849397,-1000.0,0.000224,10]
[356030625,1741807849406,-175.31412188,0.00022457,2]
[356030626,1741807849415,-477.691,0.00022458,2]
[356030627,1741807849424,-1000.0,0.0002246,2]
[356030628,1741807849433,-168.0,0.00022465,2]
[356030629,1741807849440,-500.0,0.00022465,2]
[356030630,1741807849449,-500.0,0.00022465,2]
[356030631,1741807849458,-500.0,0.00022465,2]
[356030632,1741807849468,-657.96,0.00022465,2]
[356030633,1741807849478,-500.0,0.00022465,2]
[356030634,1741807849487,-1892.55,0.00022465,2]
[356030635,1741807849497,-500.0,0.00022465,2]
[356030636,1741807849507,-500.0,0.00022465,2]
[356030637,1741807849516,-500.0,0.00022465,2]
[356030638,1741807849526,-500.0,0.00022465,2]
[356030639,1741807849535,-500.0,0.00022465,2]
[356030640,1741807849545,-500.0,0.00022465,2]
[356030641,1741807849555,-500.0,0.00022465,2]
[356030642,1741807849564,-500.0,0.00022465,2]
[356030643,1741807849574,-151.151161,0.00022465,7]
[356030644,1741807849583,-500.0,0.00022465,2]
[356030645,1741807849593,-426.18127065,0.00022465,2]
[356030646,1741807849602,-621.82,0.00022465,2]
[356030647,1741807849611,-500.0,0.00022465,2]
[356030648,1741807849621,-151.0,0.00022465,7]
[356030649,1741807849630,-500.0,0.00022465,2]
[356030650,1741807849639,-151.0,0.00022465,7]
[356030651,1741807849649,-500.0,0.00022465,2]
[356030652,1741807849659,-500.0,0.00022465,2]
[356030653,1741807849668,-500.0,0.00022465,2]
[356030654,1741807849678,-500.0,0.00022465,2]
[356030655,1741807849687,-500.0,0.00022465,2]
[356030656,1741807849705,-165.234174,0.00022465,7]
[356030657,1741807849715,-500.0,0.00022465,2]
[356030658,1741807849725,-500.0,0.00022465,2]
[356030659,1741807849735,-151.0,0.00022465,7]
[356030660,1741807849747,-151.0,0.00022465,7]
[356030661,1741807849757,-151.0,0.00022465,7]
[356030662,1741807849767,-500.0,0.00022465,2]
[356030663,1741807849780,-500.0,0.00022465,2]
[356030664,1741807849969,-500.0,0.00022465,2]
[356030665,1741807849980,-209.97664959,0.00022465,2]
[356030666,1741807849990,-151.0,0.00022465,7]
[356030667,1741807849999,-500.0,0.00022465,2]
[356030668,1741807850009,-500.0,0.00022465,2]
[356030669,1741807850018,-151.0,0.00022465,7]
[356030670,1741807850028,-151.0,0.00022465,7]
[356030671,1741807850037,-500.0,0.00022465,2]
[356030672,1741807850046,-151.0,0.00022465,7]
[356030673,1741807850055,-611.56,0.00022465,2]
[356030674,1741807850065,-151.0,0.00022465,7]
[356030675,1741807850074,-151.0,0.00022465,7]
[356030676,1741807850083,-500.0,0.00022465,2]
[356030677,1741807850093,-500.0,0.00022465,2]
[356030678,1741807850102,-803.05,0.00022465,2]
[356030679,1741807850112,-500.0,0.00022465,2]
[356030680,1741807850121,-500.0,0.00022465,2]
[356030681,1741807850131,-151.0,0.00022465,7]
[356030682,1741807850140,-151.0,0.00022465,7]
[356030683,1741807850149,-500.0,0.00022465,2]
[356030684,1741807850159,-500.0,0.00022465,2]
[356030685,1741807850168,-538.96,0.00022465,2]
[356030686,1741807850178,-500.0,0.00022465,2]
[356030687,1741807850187,-500.0,0.00022465,2]
[356030688,1741807850197,-571.78,0.00022465,2]
[356030689,1741807850207,-500.0,0.00022465,2]
[356030690,1741807850216,-500.0,0.00022465,2]
[356030691,1741807850226,-823.03,0.00022465,2]
[356030692,1741807850235,-500.0,0.00022465,2]
[356030693,1741807850244,-151.0,0.00022465,7]
[356030694,1741807850254,-500.0,0.00022465,2]
[356030695,1741807850263,-151.0,0.00022465,7]
[356030696,1741807850273,-151.0,0.00022465,7]
[356030697,1741807850282,-151.0,0.00022465,7]
[356030698,1741807850291,-500.0,0.00022465,2]
[356030699,1741807850301,-151.0,0.00022465,7]
[356030700,1741807850310,-151.0,0.00022465,7]
[356030701,1741807850319,-500.0,0.00022465,2]
[356030702,1741807850329,-151.0,0.00022465,7]
[356030703,1741807850339,-500.0,0.00022465,2]
[356030704,1741807850356,-151.0,0.00022465,7]
[356030705,1741807850373,-814.52,0.00022465,2]
[356030706,1741807850383,-151.0,0.00022465,7]
[356030707,1741807850392,-500.0,0.00022465,2]
[356030708,1741807850401,-151.0,0.00022465,7]
[356030709,1741807850411,-151.0,0.00022465,7]
[356030710,1741807850421,-500.0,0.00022465,2]
[356030711,1741807850431,-151.0,0.00022465,7]
[356030712,1741807850440,-500.0,0.00022465,2]
[356030713,1741807850449,-277.386886,0.00022465,7]
[356030714,1741807850458,-500.0,0.00022465,2]
[356030715,1741807850467,-598.68595098,0.00022465,2]
[356030716,1741807850477,-500.0,0.00022465,2]
[356030717,1741807850486,-849.25,0.00022465,2]
[356030718,1741807850495,-151.0,0.00022465,7]
[356030719,1741807850505,-500.0,0.00022465,2]
[356030720,1741807850514,-151.0,0.00022465,7]
[356030721,1741807850523,-500.0,0.00022465,2]
[356030722,1741807850533,-625.79,0.00022465,2]
[356030723,1741807850543,-873.61,0.00022465,2]
[356030724,1741807850553,-1256.4,0.00022465,2]
[356030725,1741807850562,-500.0,0.00022465,2]
[356030726,1741807850571,-151.0,0.00022465,7]
[356030727,1741807850580,-353.751824,0.00022465,7]
[356030728,1741807850589,-879.24,0.00022465,2]
[356030729,1741807850599,-500.0,0.00022465,2]
[356030730,1741807850608,-353.751824,0.00022465,7]
[356030731,1741807850617,-274.44098617,0.00022465,2]
[356030732,1741807850626,-790.12,0.00022465,2]
[356030733,1741807850636,-151.0,0.00022465,7]
[356030734,1741807850645,-500.0,0.00022465,2]
[356030735,1741807850654,-220.152077,0.00022465,7]
[356030736,1741807850664,-151.0,0.00022465,7]
[356030737,1741807850674,-500.0,0.00022465,2]
[356030738,1741807850683,-500.0,0.00022465,2]
[356030739,1741807850695,-220.152077,0.00022465,7]
[356030740,1741807850705,-151.0,0.00022465,7]
[356030741,1741807850715,-500.0,0.00022465,2]
[356030742,1741807850723,-151.0,0.00022465,7]
[356030743,1741807850733,-772.69,0.00022465,2]
[356030744,1741807850742,-500.0,0.00022465,2]
[356030745,1741807850751,-500.0,0.00022465,2]
[356030746,1741807850761,-500.0,0.00022465,2]
[356030747,1741807850771,-515.00335241,0.00022465,2]
[356030748,1741807850780,-964.71,0.00022465,2]
[356030749,1741807850789,-500.0,0.00022465,2]
[356030750,1741807850798,-500.0,0.00022465,2]
[356030751,1741807850807,-500.0,0.00022465,2]
[356030752,1741807850816,-500.0,0.00022465,5]
[356030753,1741807850826,-500.0,0.00022465,2]
[356030754,1741807850835,-500.0,0.00022465,2]
[356030755,1741807850844,-500.0,0.00022465,2]
[356030756,1741807850853,-151.0,0.00022465,7]
[356030757,1741807850862,-220.089596,0.00022465,7]
[356030758,1741807850872,-928.62,0.00022465,2]
[356030759,1741807850881,-500.0,0.00022465,2]
[356030760,1741807850890,-500.0,0.00022465,2]
[356030761,1741807850899,-500.0,0.00022465,2]
[356030762,1741807850909,-500.0,0.00022465,2]
[356030763,1741807850918,-1520.59,0.00022465,2]
[356030764,1741807850927,-500.0,0.00022465,2]
[356030765,1741807850936,-500.0,0.00022465,2]
[356030766,1741807850945,-515.47303822,0.00022465,2]
[356030767,1741807850954,-500.0,0.00022465,2]
[356030768,1741807850963,-151.0,0.00022465,7]
[356030769,1741807850972,-1039.44,0.00022465,2]
[356030770,1741807850981,-565.220943,0.00022465,7]
[356030771,1741807850990,-500.0,0.00022465,2]
[356030772,1741807851000,-500.0,0.00022465,2]
[356030773,1741807851009,-565.220943,0.00022465,7]
[356030774,1741807851018,-960.69,0.00022465,2]
[356030775,1741807851027,-500.0,0.00022465,2]
[356030776,1741807851037,-969.27,0.00022465,2]
[356030777,1741807851046,-1446.5,0.00022465,2]
[356030778,1741807851056,-1627.85,0.00022465,2]
[356030779,1741807851065,-500.0,0.00022465,2]
[356030780,1741807851075,-500.0,0.00022465,2]
[356030781,1741807851084,-2645.79,0.00022465,2]
[356030782,1741807851093,-162.389569,0.00022465,7]
[356030783,1741807851102,-162.389569,0.00022465,7]
[356030784,1741807851111,-151.0,0.00022465,7]
[356030785,1741807851121,-388.013246,0.00022465,7]
[356030786,1741807851130,-500.0,0.00022465,2]
[356030787,1741807851139,-388.013246,0.00022465,7]
[356030788,1741807851148,-500.0,0.00022465,2]
[356030789,1741807851159,-500.0,0.00022465,2]
[356030790,1741807851168,-500.0,0.00022465,2]
[356030791,1741807851177,-500.0,0.00022465,2]
[356030792,1741807851186,-500.0,0.00022465,2]
[356030793,1741807851195,-151.0,0.00022465,7]
[356030794,1741807851204,-151.0,0.00022465,7]
[356030795,1741807851213,-1095.45,0.00022465,2]
[356030796,1741807851223,-500.0,0.00022465,2]
[356030797,1741807851232,-500.0,0.00022465,2]
[356030798,1741807851241,-500.0,0.00022465,2]
[356030799,1741807851251,-711.4,0.00022465,2]
[356030800,1741807851260,-4545.08,0.00022465,2]
[356030801,1741807851270,-500.0,0.00022465,2]
[356030802,1741807851280,-226.015289,0.00022465,7]
[356030803,1741807851289,-500.0,0.00022465,2]
[356030804,1741807851299,-500.0,0.00022465,2]
[356030805,1741807851308,-500.0,0.00022465,2]
[356030806,1741807851317,-226.015289,0.00022465,7]
[356030807,1741807851326,-500.0,0.00022465,2]
[356030808,1741807851336,-6905.92,0.00022465,2]
[356030809,1741807851345,-4102.35,0.00022465,2]
[356030810,1741807851355,-727.27,0.00022465,2]
[356030811,1741807851364,-500.0,0.00022465,2]
[356030812,1741807851373,-500.0,0.00022465,2]
[356030813,1741807851383,-579.7,0.00022465,2]
[356030814,1741807851392,-1366.05,0.00022465,2]
[356030815,1741807851402,-500.0,0.00022465,2]
[356030816,1741807851412,-2566.27,0.00022465,2]
[356030817,1741807851422,-500.0,0.00022465,2]
[356030818,1741807851431,-621.24802495,0.00022465,2]
[356030819,1741807851440,-500.0,0.00022465,2]
[356030820,1741807851449,-3047.2,0.00022465,2]
[356030821,1741807851459,-624.74,0.00022465,2]
[356030822,1741807851468,-500.0,0.00022465,2]
[356030823,1741807851478,-151.0,0.00022465,7]
[356030824,1741807851487,-1050.365468,0.00022465,7]
[356030825,1741807851496,-151.0,0.00022465,7]
[356030826,1741807851505,-500.0,0.00022465,2]
[356030827,1741807851514,-602.09,0.00022465,2]
[356030828,1741807851524,-1050.365468,0.00022465,7]
[356030829,1741807851533,-151.0,0.00022465,7]
[356030830,1741807851542,-500.0,0.00022465,2]
[356030831,1741807851552,-151.0,0.00022465,7]
[356030832,1741807851561,-500.0,0.00022465,2]
[356030833,1741807851570,-500.0,0.00022465,2]
[356030834,1741807851580,-500.0,0.00022465,2]
[356030835,1741807851590,-504.40716043,0.00022465,2]
[356030836,1741807851599,-322.67675475,0.00022465,2]
[356030837,1741807851608,-500.0,0.00022465,2]
[356030838,1741807851617,-878.22,0.00022465,2]
[356030839,1741807851626,-1126.64,0.00022465,2]
[356030840,1741807851635,-500.0,0.00022465,2]
[356030841,1741807851645,-500.0,0.00022465,2]
[356030842,1741807851654,-151.0,0.00022465,7]
[356030843,1741807851663,-419.08251244,0.00022465,2]
[356030844,1741807851673,-216.5788914,0.00022465,2]
[356030845,1741807851682,-151.0,0.00022465,7]
[356030846,1741807851693,-500.0,0.00022465,2]
[356030847,1741807851702,-500.0,0.00022465,2]
[356030848,1741807851711,-500.0,0.00022465,2]
[356030849,1741807851721,-151.0,0.00022465,7]
[356030850,1741807851730,-516.94,0.00022465,2]
[356030851,1741807851741,-4535.03,0.00022465,2]
[356030852,1741807851750,-759.37,0.00022465,2]
[356030853,1741807851758,-1455.49,0.00022465,2]
[356030854,1741807851767,-2587.15,0.00022465,2]
[356030855,1741807851777,-500.0,0.00022465,2]
[356030856,1741807851787,-500.0,0.00022465,2]
[356030857,1741807851796,-2614.25,0.00022465,2]
[356030858,1741807851806,-2818.32,0.00022465,2]
[356030859,1741807851818,-500.0,0.00022465,2]
[356030860,1741807851828,-500.0,0.00022465,2]
[356030861,1741807851838,-1439.5,0.00022465,2]
[356030862,1741807851847,-3780.77,0.00022465,2]
[356030863,1741807851856,-181.977683,0.00022465,7]
[356030864,1741807851865,-532.74,0.00022465,2]
[356030865,1741807851875,-500.0,0.00022465,2]
[356030866,1741807851884,-181.977683,0.00022465,7]
[356030867,1741807851893,-1614.84,0.00022465,2]
[356030868,1741807851902,-500.0,0.00022465,2]
[356030869,1741807851912,-606.39,0.00022465,2]
[356030870,1741807851920,-55052.7,0.00022465,2]
[356030871,1741807851929,-500.0,0.00022465,2]
[356030872,1741807851939,-762.18,0.00022465,2]
[356030873,1741807851948,-795.78,0.00022465,2]
[356030874,1741807851956,-15325.94,0.00022465,2]
[356030875,1741807851966,-500.0,0.00022465,2]
[356030876,1741807851976,-775.49,0.00022465,2]
[356030877,1741807851985,-500.0,0.00022465,2]
[356030878,1741807851995,-856.87,0.00022465,2]
[356030879,1741807852004,-536.39463067,0.00022465,2]
[356030880,1741807852014,-500.0,0.00022465,2]
[356030881,1741807852023,-2080.55,0.00022465,2]
[356030882,1741807852033,-1260.94,0.00022465,2]
[356030883,1741807852043,-151.0,0.00022465,7]
[356030884,1741807852052,-1967.72,0.00022465,2]
[356030885,1741807852061,-500.0,0.00022465,2]
[356030886,1741807852070,-675.84,0.00022465,2]
[356030887,1741807852080,-151.0,0.00022465,7]
[356030888,1741807852089,-500.0,0.00022465,2]
[356030889,1741807852099,-5000.0,0.00022465,2]
[356030890,1741807852108,-500.0,0.00022465,2]
[356030891,1741807852118,-982.81,0.00022465,2]
[356030892,1741807852127,-420.53971474,0.00022465,2]
[356030893,1741807852136,-500.0,0.00022465,2]
[356030894,1741807852146,-500.0,0.00022465,2]
[356030895,1741807852155,-898.47,0.00022465,2]
[356030896,1741807852165,-2400.93,0.00022465,2]
[356030897,1741807852175,-500.0,0.00022465,2]
[356030898,1741807852184,-500.0,0.00022465,2]
[356030899,1741807852194,-6967.34,0.00022465,2]
[356030900,1741807852203,-5232.51,0.00022465,2]
[356030901,1741807852212,-10406.88,0.00022465,2]
[356030902,1741807852221,-389.92741209,0.00022465,2]
[356030903,1741807852231,-1098.79,0.00022465,2]
[356030904,1741807852240,-500.0,0.00022465,2]
[356030905,1741807852250,-1000.0,0.00022465,7]
[356030906,1741807852259,-5000.0,0.00022465,2]
[356030907,1741807852268,-4196.022214,0.00022465,7]
[356030908,1741807852277,-784.47,0.00022465,2]
[356030909,1741807852287,-500.0,0.00022465,2]
[356030910,1741807852296,-816.64,0.00022465,2]
[356030911,1741807852305,-4196.022214,0.00022465,7]
[356030912,1741807852315,-248.35623909,0.00022465,2]
[356030913,1741807852866,-166.0,0.00022192,2]
[356030914,1741807852876,-92.22,0.00022465,2]
[356030915,1741807852888,-598.06376091,0.00022465,2]
[356030916,1741807852908,-500.0,0.00022465,2]
[356030917,1741807852919,-500.0,0.00022465,2]
[356030918,1741807852929,-3174.62,0.00022465,2]
[356030919,1741807852939,-500.0,0.00022465,2]
[356030920,1741807852949,-500.0,0.00022465,2]
[356030921,1741807852959,-500.0,0.00022465,2]
[356030922,1741807852968,-716.93523345,0.00022465,2]
[356030923,1741807957027,-154.59671782,0.00024,120]
[356030924,1741807957092,-243.01414357,0.00025,120]
[356030925,1741807957157,-804.09,0.000266,31]
[356030926,1741807957180,-804.09,0.000266,31]
[356030927,1741807957204,-804.09,0.000266,31]
[356030928,1741807957226,-804.09,0.000266,31]
[356030929,1741807957250,-804.09,0.000266,31]
[356030930,1741807957272,-581.93913861,0.000266,31]
[356030931,1741808061839,300.0,0.000179,7]
[356030932,1741808290370,-300.0,0.000194,8]
[356030933,1741808290392,-24900.0,0.00020712,2]
[356030934,1741808290415,-300.0,0.000209,9]
[356030935,1741808290436,-150.0,0.00021,2]
[356030936,1741808290459,-2392.258806,0.00021616,2]
[356030937,1741808290481,-799.99,0.000217,2]
[356030938,1741808290502,-159.58505571,0.00021716,2]
[356030939,1741808290525,-609.44130798,0.00021716,2]
[356030940,1741808290548,-500.0,0.00021716,2]
[356030941,1741808290572,-500.0,0.00021716,2]
[356030942,1741808290595,-500.0,0.00021716,2]
[356030943,1741808290617,-500.0,0.00021716,2]
[356030944,1741808290640,-500.0,0.00021716,2]
[356030945,1741808290663,-500.0,0.00021716,2]
[356030946,1741808290684,-500.0,0.00021716,2]
[356030947,1741808290706,-500.0,0.00021716,2]
[356030948,1741808290728,-500.0,0.00021716,2]
[356030949,1741808290750,-500.0,0.00021716,2]
[356030950,1741808290775,-500.0,0.00021716,2]
[356030951,1741808290796,-204.05571201,0.00021716,2]
[356030952,1741808290819,-500.0,0.00021716,2]
[356030953,1741808290845,-500.0,0.00021716,2]
[356030954,1741808290868,-500.0,0.00021716,2]
[356030955,1741808293869,155.28823035,0.00021697,2]
[356030956,1741808311106,-75000.0,0.00021717,2]
[356030984,1741809032651,-1326.55705581,0.00020612,2]
[356030985,1741809032734,-1.02572986,0.00020612,2]
[356030986,1741809032750,-682.66670577,0.00020612,2]
[356030987,1741809032760,-1067.951517,0.00020712,2]
[356030988,1741809032769,-657.96824437,0.000209,30]
[356030989,1741809032778,-150.0,0.00021,2]
[356030990,1741809032787,-2453.80943764,0.00021599,2]
[356030991,1741809032797,-273.48,0.00021689,2]
[356030992,1741809032806,-273.48,0.00021689,2]
[356030993,1741809032815,-273.48,0.00021689,2]
[356030994,1741809032824,-273.48,0.00021689,2]
[356030995,1741809032834,-273.48,0.00021689,2]
[356030996,1741809032843,-273.48,0.00021689,2]
[356030997,1741809032852,-273.48,0.00021689,2]
[356030998,1741809032862,-273.48,0.00021689,2]
[356030999,1741809032871,-61.94921853,0.00021689,2]
[356031012,1741809038747,-211.53078147,0.00021689,2]
[356031013,1741809038757,-273.48,0.00021689,2]
[356031014,1741809038767,-288.64897534,0.00021697,2]
[356031015,1741809038776,-300.0,0.00021697,2]
[356031016,1741809038786,-2962.14064,0.00021698,2]
[356031017,1741809038796,-500.0,0.00021698,2]
[356031018,1741809038805,-500.0,0.00021698,2]
[356031019,1741809038815,-500.0,0.00021698,2]
[356031020,1741809038824,-500.0,0.00021698,2]
[356031021,1741809038833,-500.0,0.00021698,2]
[356031022,1741809038843,-500.0,0.00021698,2]
[356031023,1741809038852,-500.0,0.00021698,2]
[356031024,1741809038862,-500.0,0.00021698,2]
[356031025,1741809038871,-500.0,0.00021698,2]
[356031026,1741809038881,-500.0,0.00021698,2]
[356031027,1741809038890,-500.0,0.00021698,2]
[356031028,1741809038899,-204.05571201,0.00021698,2]
[356031029,1741809038909,-500.0,0.00021698,2]
[356031030,1741809038918,-500.0,0.00021698,2]
[356031031,1741809038928,-500.0,0.00021698,2]
[356031032,1741809038937,-500.0,0.00021698,2]
[356031033,1741809038949,-500.0,0.00021698,2]
[356031034,1741809038958,-500.0,0.00021698,2]